fUST/lending_fUST_20260608
["ID","MTS","AMOUNT","RATE_DAILY","PERIOD"]
[424448087,1780912247000,-500.0,0.00016438,2]
[424448093,1780912247000,-500.0,0.00016438,2]
[424448091,1780912247000,-500.0,0.00016438,2]
[424448092,1780912247000,-592.89,0.00016438,2]
[424448089,1780912247000,-500.0,0.00016438,2]
[424448088,1780912247000,-500.0,0.00016438,2]
[424448090,1780912247000,-275.80166702,0.00016438,2]
[424448094,1780912247000,-501.3415877,0.00016438,2]
[424448040,1780912247000,-150.0,0.00016,2]
[424448071,1780912247000,-500.0,0.00016438,2]
[424448063,1780912247000,-502.56076101,0.00016438,2]
[424448078,1780912247000,-500.0,0.00016438,2]
[424448068,1780912247000,-500.0,0.00016438,2]
[424448041,1780912247000,-1000.0,0.00016102,5]
[424448066,1780912247000,-500.0,0.00016438,2]
[424448039,1780912247000,-12021.00904064,0.00015961,2]
[424448046,1780912247000,-501.15709321,0.00016438,2]
[424448044,1780912247000,-500.0,0.00016438,2]
[424448043,1780912247000,-507.7147,0.00016438,2]
[424448042,1780912247000,-879.9937,0.00016438,2]
[424448048,1780912247000,-500.0,0.00016438,2]
[424448049,1780912247000,-500.0,0.00016438,2]
[424448051,1780912247000,-500.0,0.00016438,2]
[424448060,1780912247000,-282.22702762,0.00016438,2]
[424448059,1780912247000,-538.6,0.00016438,2]
[424448052,1780912247000,-500.0,0.00016438,2]
[424448047,1780912247000,-500.70576918,0.00016438,2]
[424448053,1780912247000,-513.42,0.00016438,2]
[424448072,1780912247000,-500.0,0.00016438,2]
[424448062,1780912247000,-500.0,0.00016438,2]
[424448064,1780912247000,-1171.3,0.00016438,2]
[424448061,1780912247000,-500.0,0.00016438,2]
[424448056,1780912247000,-500.0,0.00016438,2]
[424448065,1780912247000,-500.0,0.00016438,2]
[424448054,1780912247000,-500.0,0.00016438,2]
[424448057,1780912247000,-552.48,0.00016438,2]
[424448058,1780912247000,-500.0,0.00016438,2]
[424448050,1780912247000,-591.5,0.00016438,2]
[424448055,1780912247000,-500.0,0.00016438,2]
[424448135,1780912248000,-508.35,0.00016438,2]
[424448136,1780912248000,-3643.54,0.00016438,2]
[424448134,1780912248000,-500.0,0.00016438,2]
[424448132,1780912248000,-1537.16,0.00016438,2]
[424448131,1780912248000,-500.0,0.00016438,2]
[424448137,1780912248000,-500.61962549,0.00016438,2]
[424448129,1780912248000,-1423.91,0.00016438,2]
[424448126,1780912248000,-1652.26,0.00016438,2]
[424448133,1780912248000,-776.81,0.00016438,2]
[424448128,1780912248000,-500.0,0.00016438,2]
[424448139,1780912248000,-601.25753668,0.00016438,2]
[424448130,1780912248000,-500.0,0.00016438,2]
[424448143,1780912248000,-500.0,0.00016438,2]
[424448161,1780912248000,-176.385527,0.00016458,2]
[424448150,1780912248000,-500.0,0.00016438,2]
[424448144,1780912248000,-500.0,0.00016438,2]
[424448153,1780912248000,-500.0,0.00016438,2]
[424448145,1780912248000,-500.0,0.00016438,2]
[424448151,1780912248000,-151.0,0.00016438,2]
[424448140,1780912248000,-501.14647546,0.00016438,2]
[424448147,1780912248000,-500.0,0.00016438,2]
[424448148,1780912248000,-501.09916764,0.00016438,2]
[424448149,1780912248000,-833.48,0.00016438,2]
[424448146,1780912248000,-500.0,0.00016438,2]
[424448152,1780912248000,-500.0,0.00016438,2]
[424448162,1780912248000,-7605.51370121,0.000167,2]
[424448138,1780912248000,-533.39,0.00016438,2]
[424448141,1780912248000,-1083.33,0.00016438,2]
[424448127,1780912248000,-1218.13,0.00016438,2]
[424448096,1780912248000,-500.0,0.00016438,2]
[424448125,1780912248000,-623.77,0.00016438,2]
[424448098,1780912248000,-500.0,0.00016438,2]
[424448095,1780912248000,-1338.88,0.00016438,2]
[424448097,1780912248000,-500.0,0.00016438,2]
[424448099,1780912248000,-501.2731589,0.00016438,2]
[424448101,1780912248000,-500.0,0.00016438,2]
[424448109,1780912248000,-500.0,0.00016438,2]
[424448110,1780912248000,-500.0,0.00016438,2]
[424448111,1780912248000,-500.0,0.00016438,2]
[424448100,1780912248000,-500.0,0.00016438,2]
[424448103,1780912248000,-500.0,0.00016438,2]
[424448104,1780912248000,-504.92,0.00016438,2]
[424448105,1780912248000,-500.0,0.00016438,2]
[424448102,1780912248000,-500.0,0.00016438,2]
[424448123,1780912248000,-500.0,0.00016438,2]
[424448107,1780912248000,-1001.01810374,0.00016438,2]
[424448108,1780912248000,-500.0,0.00016438,2]
[424448112,1780912248000,-500.0,0.00016438,2]
[424448113,1780912248000,-500.0,0.00016438,2]
[424448116,1780912248000,-500.0,0.00016438,2]
[424448115,1780912248000,-744.76,0.00016438,2]
[424448117,1780912248000,-500.0,0.00016438,2]
[424448114,1780912248000,-500.0,0.00016438,2]
[424448121,1780912248000,-1652.01,0.00016438,2]
[424448124,1780912248000,-501.58307492,0.00016438,2]
[424448122,1780912248000,-500.0,0.00016438,2]
[424448120,1780912248000,-2718.96,0.00016438,2]
[424448118,1780912248000,-632.01,0.00016438,2]
[424448119,1780912248000,-672.32,0.00016438,2]
[424448106,1780912248000,-1261.48,0.00016438,2]
[424448157,1780912248000,-500.0,0.00016438,2]
[424448142,1780912248000,-586.26,0.00016438,2]
[424448154,1780912248000,-500.0,0.00016438,2]
[424448198,1780912248000,-589.48014898,0.00016712,2]
[424448189,1780912248000,-500.0,0.00016712,2]
[424448192,1780912248000,-500.0,0.00016712,2]
[424448190,1780912248000,-500.0,0.00016712,2]
[424448199,1780912248000,-533.23,0.00016712,2]
[424448194,1780912248000,-528.86,0.00016712,2]
[424448197,1780912248000,-586.15,0.00016712,2]
[424448191,1780912248000,-500.0,0.00016712,2]
[424448193,1780912248000,-500.0,0.00016712,2]
[424448200,1780912248000,-500.0,0.00016712,2]
[424448196,1780912248000,-500.0,0.00016712,2]
[424448211,1780912248000,-1338.88,0.00016712,2]
[424448209,1780912248000,-592.89,0.00016712,2]
[424448195,1780912248000,-500.0,0.00016712,2]
[424448210,1780912248000,-570.19,0.00016712,2]
[424448204,1780912248000,-500.0,0.00016712,2]
[424448214,1780912248000,-500.0,0.00016712,2]
[424448202,1780912248000,-605.86,0.00016712,2]
[424448205,1780912248000,-500.0,0.00016712,2]
[424448212,1780912248000,-500.0,0.00016712,2]
[424448203,1780912248000,-500.0,0.00016712,2]
[424448213,1780912248000,-500.0,0.00016712,2]
[424448207,1780912248000,-500.0,0.00016712,2]
[424448208,1780912248000,-617.6,0.00016712,2]
[424448216,1780912248000,-500.0,0.00016712,2]
[424448218,1780912248000,-500.0,0.00016712,2]
[424448217,1780912248000,-500.0,0.00016712,2]
[424448215,1780912248000,-500.0,0.00016712,2]
[424448206,1780912248000,-500.0,0.00016712,2]
[424448201,1780912248000,-574.46217276,0.00016712,2]
[424448155,1780912248000,-500.0,0.00016438,2]
[424448181,1780912248000,-538.6,0.00016712,2]
[424448179,1780912248000,-552.48,0.00016712,2]
[424448159,1780912248000,-1001.47700116,0.00016438,2]
[424448156,1780912248000,-16892.34,0.00016438,2]
[424448158,1780912248000,-500.0,0.00016438,2]
[424448160,1780912248000,-883.97,0.00016438,2]
[424448163,1780912248000,-270.0,0.00016712,2]
[424448165,1780912248000,-180.0,0.00016712,2]
[424448168,1780912248000,-500.0,0.00016712,2]
[424448171,1780912248000,-500.0,0.00016712,2]
[424448164,1780912248000,-190.0,0.00016712,2]
[424448170,1780912248000,-500.0,0.00016712,2]
[424448169,1780912248000,-500.0,0.00016712,2]
[424448167,1780912248000,-507.7147,0.00016712,2]
[424448172,1780912248000,-591.5,0.00016712,2]
[424448166,1780912248000,-879.9937,0.00016712,2]
[424448174,1780912248000,-500.0,0.00016712,2]
[424448173,1780912248000,-500.0,0.00016712,2]
[424448177,1780912248000,-500.0,0.00016712,2]
[424448178,1780912248000,-280.57719357,0.00016712,2]
[424448180,1780912248000,-500.0,0.00016712,2]
[424448182,1780912248000,-570.91,0.00016712,2]
[424448175,1780912248000,-513.42,0.00016712,2]
[424448176,1780912248000,-444.831712,0.00016712,2]
[424448186,1780912248000,-623.12,0.00016712,2]
[424448184,1780912248000,-1171.3,0.00016712,2]
[424448185,1780912248000,-500.0,0.00016712,2]
[424448187,1780912248000,-500.0,0.00016712,2]
[424448188,1780912248000,-500.0,0.00016712,2]
[424448183,1780912248000,-554.4,0.00016712,2]
[424448253,1780912249000,-500.0,0.00016712,2]
[424448259,1780912249000,-507.46,0.00016712,2]
[424448264,1780912249000,-500.0,0.00016712,2]
[424448265,1780912249000,-500.0,0.00016712,2]
[424448258,1780912249000,-496.16,0.00016712,2]
[424448262,1780912249000,-500.0,0.00016712,2]
[424448261,1780912249000,-500.0,0.00016712,2]
[424448260,1780912249000,-466.0249897,0.00016712,2]
[424448257,1780912249000,-833.48,0.00016712,2]
[424448255,1780912249000,-500.0,0.00016712,2]
[424448254,1780912249000,-500.0,0.00016712,2]
[424448263,1780912249000,-16892.34,0.00016712,2]
[424448256,1780912249000,-500.0,0.00016712,2]
[424448267,1780912249000,-160.0,0.00016749,2]
[424448281,1780912249000,-500.0,0.00016986,2]
[424448278,1780912249000,-500.0,0.00016986,2]
[424448268,1780912249000,-720.0,0.00016829,2]
[424448266,1780912249000,-883.97,0.00016712,2]
[424448270,1780912249000,-190.0,0.00016986,2]
[424448273,1780912249000,-500.0,0.00016986,2]
[424448269,1780912249000,-7605.51370121,0.000169,2]
[424448274,1780912249000,-500.0,0.00016986,2]
[424448272,1780912249000,-507.7147,0.00016986,2]
[424448271,1780912249000,-879.9937,0.00016986,2]
[424448275,1780912249000,-161.39,0.00016986,2]
[424448279,1780912249000,-500.0,0.00016986,2]
[424448283,1780912249000,-500.0,0.00016986,2]
[424448252,1780912249000,-500.0,0.00016712,2]
[424448285,1780912249000,-1171.3,0.00016986,2]
[424448277,1780912249000,-591.5,0.00016986,2]
[424448247,1780912249000,-508.35,0.00016712,2]
[424448230,1780912249000,-500.0,0.00016712,2]
[424448244,1780912249000,-500.0,0.00016712,2]
[424448220,1780912249000,-500.0,0.00016712,2]
[424448221,1780912249000,-1261.48,0.00016712,2]
[424448219,1780912249000,-504.92,0.00016712,2]
[424448222,1780912249000,-500.0,0.00016712,2]
[424448223,1780912249000,-500.0,0.00016712,2]
[424448224,1780912249000,-500.0,0.00016712,2]
[424448226,1780912249000,-500.0,0.00016712,2]
[424448227,1780912249000,-500.0,0.00016712,2]
[424448228,1780912249000,-500.0,0.00016712,2]
[424448225,1780912249000,-500.0,0.00016712,2]
[424448231,1780912249000,-632.01,0.00016712,2]
[424448233,1780912249000,-2718.96,0.00016712,2]
[424448237,1780912249000,-623.77,0.00016712,2]
[424448229,1780912249000,-744.76,0.00016712,2]
[424448248,1780912249000,-3643.54,0.00016712,2]
[424448232,1780912249000,-672.32,0.00016712,2]
[424448236,1780912249000,-500.0,0.00016712,2]
[424448234,1780912249000,-1652.01,0.00016712,2]
[424448280,1780912249000,-513.42,0.00016986,2]
[424448239,1780912249000,-1218.13,0.00016712,2]
[424448238,1780912249000,-1652.26,0.00016712,2]
[424448249,1780912249000,-533.39,0.00016712,2]
[424448251,1780912249000,-586.26,0.00016712,2]
[424448240,1780912249000,-322.45973703,0.00016712,2]
[424448242,1780912249000,-592.87,0.00016712,2]
[424448241,1780912249000,-1423.91,0.00016712,2]
[424448250,1780912249000,-1083.33,0.00016712,2]
[424448245,1780912249000,-776.81,0.00016712,2]
[424448246,1780912249000,-500.0,0.00016712,2]
[424448243,1780912249000,-1537.16,0.00016712,2]
[424448235,1780912249000,-500.0,0.00016712,2]
[424448291,1780912249000,-322.938929,0.00016986,2]
[424448276,1780912249000,-500.0,0.00016986,2]
[424448292,1780912249000,-500.0,0.00016986,2]
[424448332,1780912249000,-623.77,0.00016986,2]
[424448331,1780912249000,-500.0,0.00016986,2]
[424448322,1780912249000,-500.0,0.00016986,2]
[424448323,1780912249000,-500.0,0.00016986,2]
[424448320,1780912249000,-500.0,0.00016986,2]
[424448324,1780912249000,-744.76,0.00016986,2]
[424448329,1780912249000,-1652.01,0.00016986,2]
[424448325,1780912249000,-500.0,0.00016986,2]
[424448328,1780912249000,-2718.96,0.00016986,2]
[424448326,1780912249000,-632.01,0.00016986,2]
[424448327,1780912249000,-672.32,0.00016986,2]
[424448330,1780912249000,-500.0,0.00016986,2]
[424448333,1780912249000,-1652.26,0.00016986,2]
[424448335,1780912249000,-1423.91,0.00016986,2]
[424448321,1780912249000,-500.0,0.00016986,2]
[424448334,1780912249000,-1218.13,0.00016986,2]
[424448341,1780912249000,-3643.54,0.00016986,2]
[424448339,1780912249000,-500.0,0.00016986,2]
[424448344,1780912249000,-586.26,0.00016986,2]
[424448340,1780912249000,-508.35,0.00016986,2]
[424448284,1780912249000,-538.6,0.00016986,2]
[424448345,1780912249000,-500.0,0.00016986,2]
[424448343,1780912249000,-1083.33,0.00016986,2]
[424448342,1780912249000,-533.39,0.00016986,2]
[424448338,1780912249000,-776.81,0.00016986,2]
[424448347,1780912249000,-500.0,0.00016986,2]
[424448346,1780912249000,-500.0,0.00016986,2]
[424448348,1780912249000,-500.0,0.00016986,2]
[424448349,1780912249000,-500.0,0.00016986,2]
[424448350,1780912249000,-833.48,0.00016986,2]
[424448336,1780912249000,-1537.16,0.00016986,2]
[424448312,1780912249000,-500.0,0.00016986,2]
[424448337,1780912249000,-500.0,0.00016986,2]
[424448318,1780912249000,-500.0,0.00016986,2]
[424448314,1780912249000,-504.92,0.00016986,2]
[424448286,1780912249000,-500.0,0.00016986,2]
[424448282,1780912249000,-552.48,0.00016986,2]
[424448288,1780912249000,-500.0,0.00016986,2]
[424448287,1780912249000,-500.0,0.00016986,2]
[424448290,1780912249000,-500.0,0.00016986,2]
[424448293,1780912249000,-500.0,0.00016986,2]
[424448305,1780912249000,-592.89,0.00016986,2]
[424448294,1780912249000,-528.86,0.00016986,2]
[424448304,1780912249000,-151.0,0.00016986,2]
[424448297,1780912249000,-533.23,0.00016986,2]
[424448296,1780912249000,-500.0,0.00016986,2]
[424448295,1780912249000,-500.0,0.00016986,2]
[424448298,1780912249000,-500.0,0.00016986,2]
[424448300,1780912249000,-611.67486592,0.00016986,2]
[424448289,1780912249000,-500.0,0.00016986,2]
[424448299,1780912249000,-500.0,0.00016986,2]
[424448310,1780912249000,-500.0,0.00016986,2]
[424448301,1780912249000,-500.0,0.00016986,2]
[424448315,1780912249000,-500.0,0.00016986,2]
[424448313,1780912249000,-500.0,0.00016986,2]
[424448307,1780912249000,-177.88,0.00016986,2]
[424448317,1780912249000,-500.0,0.00016986,2]
[424448311,1780912249000,-500.0,0.00016986,2]
[424448316,1780912249000,-1261.48,0.00016986,2]
[424448309,1780912249000,-500.0,0.00016986,2]
[424448306,1780912249000,-1338.88,0.00016986,2]
[424448308,1780912249000,-500.0,0.00016986,2]
[424448303,1780912249000,-500.0,0.00016986,2]
[424448302,1780912249000,-500.0,0.00016986,2]
[424448319,1780912249000,-500.0,0.00016986,2]
[424448376,1780912250000,-500.0,0.0001726,2]
[424448381,1780912250000,-528.86,0.0001726,2]
[424448387,1780912250000,-500.0,0.0001726,2]
[424448377,1780912250000,-500.0,0.0001726,2]
[424448378,1780912250000,-422.94724924,0.0001726,2]
[424448379,1780912250000,-500.0,0.0001726,2]
[424448384,1780912250000,-533.23,0.0001726,2]
[424448383,1780912250000,-500.0,0.0001726,2]
[424448385,1780912250000,-500.0,0.0001726,2]
[424448397,1780912250000,-500.0,0.0001726,2]
[424448382,1780912250000,-500.0,0.0001726,2]
[424448380,1780912250000,-500.0,0.0001726,2]
[424448388,1780912250000,-500.0,0.0001726,2]
[424448390,1780912250000,-151.0,0.0001726,2]
[424448374,1780912250000,-500.0,0.0001726,2]
[424448395,1780912250000,-500.0,0.0001726,2]
[424448392,1780912250000,-1338.88,0.0001726,2]
[424448391,1780912250000,-592.89,0.0001726,2]
[424448393,1780912250000,-500.0,0.0001726,2]
[424448386,1780912250000,-500.0,0.0001726,2]
[424448370,1780912250000,-552.48,0.0001726,2]
[424448366,1780912250000,-500.0,0.0001726,2]
[424448375,1780912250000,-500.0,0.0001726,2]
[424448396,1780912250000,-500.0,0.0001726,2]
[424448356,1780912250000,-883.97,0.00016986,2]
[424448355,1780912250000,-632.51,0.00016986,2]
[424448352,1780912250000,-166.20233001,0.00016986,2]
[424448351,1780912250000,-500.0,0.00016986,2]
[424448354,1780912250000,-500.0,0.00016986,2]
[424448353,1780912250000,-16892.34,0.00016986,2]
[424448359,1780912250000,-7605.51370121,0.000172,2]
[424448357,1780912250000,-288.01775176,0.00017093,7]
[424448371,1780912250000,-500.0,0.0001726,2]
[424448361,1780912250000,-507.7147,0.0001726,2]
[424448363,1780912250000,-500.0,0.0001726,2]
[424448362,1780912250000,-500.0,0.0001726,2]
[424448364,1780912250000,-500.0,0.0001726,2]
[424448367,1780912250000,-500.0,0.0001726,2]
[424448368,1780912250000,-513.42,0.0001726,2]
[424448369,1780912250000,-500.0,0.0001726,2]
[424448373,1780912250000,-1171.3,0.0001726,2]
[424448372,1780912250000,-538.6,0.0001726,2]
[424448365,1780912250000,-591.5,0.0001726,2]
[424448358,1780912250000,-7605.51370121,0.000171,2]
[424448360,1780912250000,-879.9937,0.0001726,2]
[424448394,1780912250000,-500.0,0.0001726,2]
[424448400,1780912250000,-500.0,0.0001726,2]
[424448421,1780912250000,-1537.16,0.0001726,2]
[424448424,1780912250000,-500.0,0.0001726,2]
[424448425,1780912250000,-508.35,0.0001726,2]
[424448426,1780912250000,-3643.54,0.0001726,2]
[424448427,1780912250000,-533.39,0.0001726,2]
[424448437,1780912250000,-16892.34,0.0001726,2]
[424448434,1780912250000,-500.0,0.0001726,2]
[424448438,1780912250000,-500.0,0.0001726,2]
[424448430,1780912250000,-500.0,0.0001726,2]
[424448423,1780912250000,-776.81,0.0001726,2]
[424448429,1780912250000,-586.26,0.0001726,2]
[424448432,1780912250000,-500.0,0.0001726,2]
[424448433,1780912250000,-500.0,0.0001726,2]
[424448435,1780912250000,-833.48,0.0001726,2]
[424448436,1780912250000,-500.0,0.0001726,2]
[424448440,1780912250000,-7605.51370121,0.000174,2]
[424448439,1780912250000,-180.7372,0.00017397,2]
[424448442,1780912250000,-500.0,0.00017534,2]
[424448441,1780912250000,-500.0,0.00017534,2]
[424448398,1780912250000,-500.0,0.0001726,2]
[424448431,1780912250000,-500.0,0.0001726,2]
[424448422,1780912250000,-500.0,0.0001726,2]
[424448428,1780912250000,-1083.33,0.0001726,2]
[424448415,1780912250000,-500.0,0.0001726,2]
[424448389,1780912250000,-500.0,0.0001726,2]
[424448420,1780912250000,-1423.91,0.0001726,2]
[424448399,1780912250000,-504.92,0.0001726,2]
[424448402,1780912250000,-500.0,0.0001726,2]
[424448413,1780912250000,-2718.96,0.0001726,2]
[424448401,1780912250000,-1261.48,0.0001726,2]
[424448403,1780912250000,-500.0,0.0001726,2]
[424448404,1780912250000,-500.0,0.0001726,2]
[424448405,1780912250000,-500.0,0.0001726,2]
[424448410,1780912250000,-500.0,0.0001726,2]
[424448412,1780912250000,-672.32,0.0001726,2]
[424448408,1780912250000,-500.0,0.0001726,2]
[424448406,1780912250000,-500.0,0.0001726,2]
[424448409,1780912250000,-744.76,0.0001726,2]
[424448411,1780912250000,-632.01,0.0001726,2]
[424448414,1780912250000,-1652.01,0.0001726,2]
[424448416,1780912250000,-500.0,0.0001726,2]
[424448419,1780912250000,-1218.13,0.0001726,2]
[424448407,1780912250000,-500.0,0.0001726,2]
[424448418,1780912250000,-1652.26,0.0001726,2]
[424448417,1780912250000,-623.77,0.0001726,2]
[424448484,1780912251000,-500.0,0.00017534,2]
[424448485,1780912251000,-500.0,0.00017534,2]
[424448481,1780912251000,-500.0,0.00017534,2]
[424448488,1780912251000,-632.01,0.00017534,2]
[424448490,1780912251000,-2718.96,0.00017534,2]
[424448479,1780912251000,-500.0,0.00017534,2]
[424448489,1780912251000,-672.32,0.00017534,2]
[424448482,1780912251000,-500.0,0.00017534,2]
[424448480,1780912251000,-500.0,0.00017534,2]
[424448478,1780912251000,-1261.48,0.00017534,2]
[424448486,1780912251000,-744.76,0.00017534,2]
[424448474,1780912251000,-500.0,0.00017534,2]
[424448483,1780912251000,-500.0,0.00017534,2]
[424448487,1780912251000,-156.1,0.00017534,2]
[424448499,1780912251000,-500.0,0.00017534,2]
[424448502,1780912251000,-508.35,0.00017534,2]
[424448503,1780912251000,-3643.54,0.00017534,2]
[424448504,1780912251000,-533.39,0.00017534,2]
[424448494,1780912251000,-623.77,0.00017534,2]
[424448491,1780912251000,-1652.01,0.00017534,2]
[424448497,1780912251000,-1423.91,0.00017534,2]
[424448500,1780912251000,-776.81,0.00017534,2]
[424448493,1780912251000,-500.0,0.00017534,2]
[424448501,1780912251000,-500.0,0.00017534,2]
[424448495,1780912251000,-1652.26,0.00017534,2]
[424448498,1780912251000,-1537.16,0.00017534,2]
[424448505,1780912251000,-1083.33,0.00017534,2]
[424448517,1780912251000,-825.0,0.00017578,2]
[424448471,1780912251000,-500.0,0.00017534,2]
[424448492,1780912251000,-500.0,0.00017534,2]
[424448475,1780912251000,-228.54132251,0.00017534,2]
[424448457,1780912251000,-550.7956354,0.00017534,2]
[424448468,1780912251000,-592.89,0.00017534,2]
[424448449,1780912251000,-552.48,0.00017534,2]
[424448451,1780912251000,-538.6,0.00017534,2]
[424448450,1780912251000,-500.0,0.00017534,2]
[424448445,1780912251000,-500.0,0.00017534,2]
[424448443,1780912251000,-450.2676141,0.00017534,2]
[424448444,1780912251000,-591.5,0.00017534,2]
[424448446,1780912251000,-500.0,0.00017534,2]
[424448447,1780912251000,-513.42,0.00017534,2]
[424448448,1780912251000,-500.0,0.00017534,2]
[424448452,1780912251000,-1171.3,0.00017534,2]
[424448506,1780912251000,-586.26,0.00017534,2]
[424448455,1780912251000,-500.0,0.00017534,2]
[424448456,1780912251000,-500.0,0.00017534,2]
[424448454,1780912251000,-500.0,0.00017534,2]
[424448473,1780912251000,-500.0,0.00017534,2]
[424448458,1780912251000,-500.0,0.00017534,2]
[424448460,1780912251000,-500.0,0.00017534,2]
[424448464,1780912251000,-500.0,0.00017534,2]
[424448463,1780912251000,-500.0,0.00017534,2]
[424448461,1780912251000,-500.0,0.00017534,2]
[424448453,1780912251000,-500.0,0.00017534,2]
[424448462,1780912251000,-533.23,0.00017534,2]
[424448466,1780912251000,-500.0,0.00017534,2]
[424448476,1780912251000,-504.92,0.00017534,2]
[424448477,1780912251000,-500.0,0.00017534,2]
[424448465,1780912251000,-500.0,0.00017534,2]
[424448469,1780912251000,-1338.88,0.00017534,2]
[424448470,1780912251000,-500.0,0.00017534,2]
[424448472,1780912251000,-500.0,0.00017534,2]
[424448467,1780912251000,-500.0,0.00017534,2]
[424448459,1780912251000,-528.86,0.00017534,2]
[424448511,1780912251000,-500.0,0.00017534,2]
[424448496,1780912251000,-1218.13,0.00017534,2]
[424448512,1780912251000,-833.48,0.00017534,2]
[424448541,1780912251000,-500.0,0.00017808,2]
[424448547,1780912251000,-1338.88,0.00017808,2]
[424448557,1780912251000,-500.0,0.00017808,2]
[424448558,1780912251000,-500.0,0.00017808,2]
[424448559,1780912251000,-500.0,0.00017808,2]
[424448546,1780912251000,-592.89,0.00017808,2]
[424448548,1780912251000,-500.0,0.00017808,2]
[424448549,1780912251000,-500.0,0.00017808,2]
[424448554,1780912251000,-500.0,0.00017808,2]
[424448556,1780912251000,-500.0,0.00017808,2]
[424448552,1780912251000,-431.78864268,0.00017808,2]
[424448551,1780912251000,-387.51818182,0.00017808,2]
[424448553,1780912251000,-504.92,0.00017808,2]
[424448550,1780912251000,-500.0,0.00017808,2]
[424448540,1780912251000,-533.23,0.00017808,2]
[424448555,1780912251000,-1261.48,0.00017808,2]
[424448560,1780912251000,-219.30171131,0.00017808,2]
[424448564,1780912251000,-632.01,0.00017808,2]
[424448563,1780912251000,-744.76,0.00017808,2]
[424448561,1780912251000,-500.0,0.00017808,2]
[424448565,1780912251000,-672.32,0.00017808,2]
[424448571,1780912251000,-1652.26,0.00017808,2]
[424448566,1780912251000,-2718.96,0.00017808,2]
[424448572,1780912251000,-1218.13,0.00017808,2]
[424448568,1780912251000,-500.0,0.00017808,2]
[424448570,1780912251000,-623.77,0.00017808,2]
[424448569,1780912251000,-500.0,0.00017808,2]
[424448567,1780912251000,-1652.01,0.00017808,2]
[424448510,1780912251000,-500.0,0.00017534,2]
[424448574,1780912251000,-1537.16,0.00017808,2]
[424448562,1780912251000,-500.0,0.00017808,2]
[424448542,1780912251000,-500.0,0.00017808,2]
[424448573,1780912251000,-1423.91,0.00017808,2]
[424448545,1780912251000,-500.0,0.00017808,2]
[424448538,1780912251000,-500.0,0.00017808,2]
[424448509,1780912251000,-500.0,0.00017534,2]
[424448508,1780912251000,-500.0,0.00017534,2]
[424448518,1780912251000,-7605.51370121,0.000176,2]
[424448516,1780912251000,-1248.28834568,0.00017542,2]
[424448513,1780912251000,-500.0,0.00017534,2]
[424448515,1780912251000,-500.0,0.00017534,2]
[424448514,1780912251000,-16892.34,0.00017534,2]
[424448520,1780912251000,-151.0,0.000178,2]
[424448530,1780912251000,-538.6,0.00017808,2]
[424448532,1780912251000,-500.0,0.00017808,2]
[424448531,1780912251000,-1171.3,0.00017808,2]